bitfinex-derivatives/quotes_SOLF0:USTF0_20240815
["timestamp","ask_amount","ask_price","bid_price","bid_amount"]
[1723754020159,0.05227431,140.16,140.13,0.05083647]
[1723754020863,2.8535,140.14,140.13,0.05083647]
[1723754023664,23.97,140.16,140.08,6.4]
[1723754024658,2.8541,140.12,140.08,6.4]
[1723754024860,2.8541,140.12,140.11,0.04596664]
[1723754034173,2.90041054,140.13,140.11,0.04596664]
[1723754034368,0.04661054,140.13,140.11,0.04596664]
[1723754035376,2.8539,140.12,140.11,0.04596664]
[1723754039174,9.6,140.12,140.0,68.70739449]
[1723754039374,9.6,140.09,140.01,9.6]
[1723754039580,9.6,140.07,140.01,9.6]
[1723754039985,3.50597908,140.08,140.0,101.90369449]
[1723754040190,23.98,140.09,140.0,101.90369449]
[1723754040379,1.2362,140.08,140.0,99.04739449]
[1723754040575,0.0544939,140.05,140.03,0.05286246]
[1723754040779,2.8556,140.04,140.03,0.05286246]
[1723754042685,0.0544939,140.05,140.03,24.03286246]
[1723754042880,1.2362,140.13,140.03,24.03286246]
[1723754043191,4.09,140.13,140.08,23.98]
[1723754043579,2.854,140.12,140.08,26.8346]
[1723754043889,2.854,140.12,140.08,23.98]
[1723754044082,0.04826377,140.11,140.09,0.04715103]
[1723754046088,2.90246377,140.11,140.09,0.04715103]
[1723754046288,0.04826377,140.11,140.09,0.04715103]
[1723754047585,0.04826377,140.11,140.1,23.98]
[1723754048791,0.04826377,140.11,140.09,0.04715103]
[1723754049180,3.49502541,140.1,140.09,0.04715103]
[1723754049486,3.49502541,140.1,140.05,6.36]
[1723754049487,0.04826377,140.11,140.05,6.36]
[1723754049789,25.2222,140.1,140.0,30.34]
[1723754049981,2.8554,140.05,140.0,33.1963]
[1723754050386,1.2368,140.09,140.0,30.34]
[1723754050786,0.04825737,140.06,140.03,0.04692626]
[1723754051488,2.8556,140.04,140.03,0.04692626]
[1723754056393,0.04825737,140.06,140.03,0.04692626]
[1723754058292,0.04825737,140.06,140.03,2.90262626]
[1723754058493,0.04825737,140.06,140.03,0.04692626]
[1723754058695,0.04825737,140.06,140.04,23.98]
[1723754058895,0.04825737,140.06,140.05,2.8554]
[1723754059198,2.8543,140.11,140.04,25.3271]
[1723754059496,6.44928029,140.11,140.07,23.98]
[1723754059703,2.8543,140.11,140.07,23.98]
[1723754060399,0.05413898,140.1,140.08,0.04702094]
[1723754061405,0.05413898,140.1,140.09,23.98]
[1723754062500,0.05413898,140.1,140.09,26.8345]
[1723754062704,0.05413898,140.1,140.09,23.98]
[1723754063399,0.05413898,140.1,140.08,0.04702094]
[1723754065005,2.90843898,140.1,140.08,0.04702094]
[1723754067503,0.05413898,140.1,140.09,23.98]
[1723754068902,0.05413898,140.1,140.09,26.8345]
[1723754069603,0.05413898,140.1,140.08,0.04702094]
[1723754070208,2.8545,140.09,140.08,0.04702094]
[1723754072613,2.8554,140.05,140.02,6.34]
[1723754072807,24.03413898,140.1,140.02,6.34]
[1723754072808,1.2188,140.09,140.02,6.34]
[1723754073016,1.2188,140.09,140.02,9.196]
[1723754073215,1.2188,140.09,140.02,33.176]
[1723754073417,1.2188,140.09,140.02,30.32]
[1723754073815,0.0492114,140.07,140.04,0.05191126]
[1723754074219,2.9043114,140.07,140.04,0.05191126]
[1723754075015,0.0492114,140.07,140.04,0.05191126]
[1723754075612,0.0492114,140.07,140.04,26.88741126]
[1723754076915,0.0492114,140.07,140.05,2.8553]
[1723754077413,0.0492114,140.07,140.06,23.98]
[1723754077614,0.0492114,140.07,140.06,26.8352]
[1723754078015,2.8543,140.11,140.07,2.8549]
[1723754078411,2.8543,140.11,140.07,9.1949]
[1723754078615,2.8544,140.1,140.07,9.1949]
[1723754078820,1.3521,140.14,140.08,2.8547]
[1723754079021,2.8538,140.13,140.08,23.98]
[1723754079224,0.04916348,140.12,140.1,0.0542887]
[1723754079728,0.04916348,140.12,140.1,24.0342887]
[1723754080315,0.04916348,140.12,140.1,26.8884887]
[1723754081220,0.04916348,140.12,140.11,2.8541]
[1723754084924,56.57904204,140.2,140.13,2.8536]
[1723754085124,56.57904204,140.2,140.13,26.8336]
[1723754085321,2.8531,140.16,140.13,23.98]
[1723754086426,0.04520404,140.16,140.13,26.88080669]
[1723754087221,0.04520404,140.16,140.13,24.02710669]
[1723754087626,2.89830404,140.16,140.13,24.02710669]
[1723754088024,0.04520404,140.16,140.13,0.04710669]
[1723754088820,2.8535,140.14,140.13,0.04710669]
[1723754090631,2.8543,140.11,140.08,6.34]
[1723754091130,2.8545,140.1,140.07,23.98]
[1723754091428,2.8545,140.1,140.06,6.34]
[1723754091927,23.98,140.13,140.06,6.34]
[1723754092127,0.04664789,140.09,140.07,0.04514477]
[1723754092321,2.8547,140.08,140.07,0.04514477]
[1723754096222,0.04664789,140.09,140.07,24.02514477]
[1723754096831,0.04664789,140.09,140.08,2.8547]
[1723754097924,1.2665,140.16,140.07,48.00514477]
[1723754098131,25.2363,140.19,140.11,23.98]
[1723754098429,2.8537,140.14,140.1,6.3]
[1723754101328,2.90416716,140.13,140.11,0.05383066]
[1723754101531,0.05046716,140.13,140.11,0.05383066]
[1723754102235,2.90426716,140.13,140.11,0.05383066]
[1723754103131,0.05046716,140.13,140.11,0.05383066]
[1723754104736,2.8539,140.12,140.11,0.05383066]
[1723754104934,0.05046716,140.13,140.11,0.05383066]
[1723754105533,2.90426716,140.13,140.11,0.05383066]
[1723754107134,0.05046716,140.13,140.11,0.05383066]
[1723754107830,2.90416716,140.13,140.11,0.05383066]
[1723754108626,0.05046716,140.13,140.11,0.05383066]
[1723754111741,2.90426716,140.13,140.11,0.05383066]
[1723754112126,0.05046716,140.13,140.11,0.05383066]
[1723754112336,2.8539,140.12,140.11,0.05383066]
[1723754112635,6.42690713,140.12,140.11,0.05383066]
[1723754112841,0.05046716,140.13,140.11,2.90793066]
[1723754114833,0.05046716,140.13,140.12,2.8539]
[1723754115037,0.05046716,140.13,140.11,0.05383066]
[1723754116439,2.90436716,140.13,140.11,0.05383066]
[1723754116840,0.05046716,140.13,140.11,0.05383066]
[1723754117037,0.05046716,140.13,140.11,2.90793066]
[1723754117249,0.05046716,140.13,140.12,23.98]
[1723754117633,0.05046716,140.13,140.12,26.8339]
[1723754118937,1.3326,140.19,140.12,23.98]
[1723754119243,1.3326,140.19,140.14,23.98]
[1723754119444,2.8528,140.18,140.14,23.98]
[1723754119743,2.8528,140.18,140.14,26.8333]
[1723754120139,2.8528,140.18,140.15,0.04531849]
[1723754121135,2.8528,140.18,140.15,2.89861849]
[1723754121341,28.83459832,140.23,140.15,0.04531849]
[1723754121545,30.12489832,140.23,140.17,23.98]
[1723754121844,30.12489832,140.23,140.19,0.04496116]
[1723754122248,2.8523,140.2,140.19,0.04496116]
[1723754123642,30.12300875,140.23,140.19,0.04496116]
[1723754123947,2.5144,140.23,140.19,0.04496116]
[1723754124753,23.98,140.21,140.11,1.2554]
[1723754125151,23.98,140.19,140.09,23.98]
[1723754125450,23.98,140.17,140.09,23.98]
[1723754125844,2.8539,140.13,140.12,0.04719571]
[1723754129744,0.04793971,140.14,140.12,0.04719571]
[1723754130152,0.04793971,140.14,140.12,24.02719571]
[1723754130555,3.49738038,140.21,140.14,2.8535]
[1723754130852,2.8526,140.19,140.15,23.98]
[1723754131753,2.8526,140.19,140.16,0.04794054]
[1723754133746,2.8527,140.18,140.16,0.04794054]
[1723754133948,1.2738,140.22,140.16,0.04794054]
[1723754134344,1.2738,140.22,140.17,26.8329]
[1723754134544,1.2738,140.22,140.17,23.98]
[1723754134744,2.8522,140.21,140.17,23.98]
[1723754136553,23.98,140.22,140.16,0.04794054]
[1723754136862,23.98,140.21,140.16,0.04794054]
[1723754137161,2.8529,140.17,140.16,0.04794054]
[1723754137547,23.98,140.19,140.1,6.28]
[1723754137753,2.8537,140.14,140.1,6.28]
[1723754138060,3.63527272,140.16,140.1,6.28]
[1723754138255,2.8537,140.14,140.1,6.28]
[1723754138855,0.04794054,140.13,140.11,0.0457868]
[1723754140363,0.04794054,140.13,140.11,2.8998868]
[1723754142554,0.04794054,140.13,140.11,0.0457868]
[1723754143455,2.90184054,140.13,140.11,0.0457868]
[1723754144162,0.04794054,140.13,140.11,0.0457868]
[1723754145358,2.90174054,140.13,140.11,0.0457868]
[1723754145672,0.04794054,140.13,140.11,0.0457868]
[1723754145964,2.8539,140.12,140.11,0.0457868]
[1723754147267,0.04794054,140.13,140.11,24.0257868]
[1723754147759,0.04794054,140.13,140.12,2.8539]
[1723754147959,0.04794054,140.13,140.11,24.0257868]
[1723754148360,0.04794054,140.13,140.11,0.0457868]
[1723754148966,0.04794054,140.13,140.11,2.8997868]
[1723754150770,0.04794054,140.13,140.12,2.8539]
[1723754151167,0.04794054,140.13,140.11,24.0257868]
[1723754151369,0.04794054,140.13,140.11,0.0457868]
[1723754152065,2.90184054,140.13,140.11,0.0457868]
[1723754152368,0.04794054,140.13,140.11,0.0457868]
[1723754152666,2.8539,140.12,140.11,0.0457868]
[1723754153869,2.90174054,140.13,140.11,0.0457868]
[1723754154058,0.04794054,140.13,140.11,0.0457868]
[1723754155971,2.90174054,140.13,140.11,0.0457868]
[1723754156469,2.8539,140.12,140.11,0.0457868]
[1723754156674,0.04794054,140.13,140.11,0.0457868]
[1723754157167,2.90184054,140.13,140.11,0.0457868]
[1723754157369,0.04794054,140.13,140.11,0.0457868]
[1723754157562,23.98,140.12,140.03,30.24]
[1723754157766,1.3195,140.11,140.03,33.0956]
[1723754158265,2.8549,140.08,140.03,33.0956]
[1723754158669,1.3195,140.11,140.03,9.1156]
[1723754158872,0.05480533,140.07,140.04,0.04869495]
[1723754159370,2.8554,140.05,140.04,0.04869495]
[1723754159673,27.54324434,140.07,139.89,4.42036697]
[1723754159880,27.54324434,140.07,139.97,23.98]
[1723754159881,2.8559,140.03,139.97,23.98]
[1723754160365,2.8559,140.03,139.98,2.8567]
[1723754160572,2.8556,140.04,140.0,23.98]
[1723754161271,0.04888096,140.02,140.0,23.98]
[1723754161968,2.8554,140.05,140.01,2.8562]
[1723754163183,2.8552,140.06,140.02,26.836]
[1723754163377,0.05340975,140.04,140.02,26.8860736]
[1723754163578,0.05340975,140.04,140.02,24.0300736]
[1723754164684,0.05340975,140.04,140.02,26.8860736]
[1723754164876,0.05340975,140.04,140.02,24.0300736]
[1723754165479,300.48608473,140.16,140.03,6.26]
[1723754165789,8.8565,140.15,140.05,23.98]
[1723754166088,8.8565,140.15,140.05,26.8353]
[1723754166690,2.8545,140.1,140.05,26.8353]
[1723754166882,2.8545,140.1,140.09,0.04536153]
[1723754167489,26.8345,140.1,140.09,0.04536153]
[1723754167785,23.98,140.1,140.03,9.1158]
[1723754168287,2.8545,140.09,140.08,0.05440906]
[1723754168789,2.8545,140.09,140.04,2.8556]
[1723754169089,2.8545,140.09,140.07,0.05233452]
[1723754169387,0.04013158,140.1,140.07,0.05233452]
[1723754169982,2.8547,140.08,140.07,0.05233452]
[1723754171294,0.04013158,140.1,140.07,0.05233452]
[1723754171885,2.89463158,140.1,140.07,0.05233452]
[1723754172596,0.04013158,140.1,140.07,0.05233452]
[1723754172998,2.8547,140.08,140.07,0.05233452]
[1723754173795,6.3961517,140.08,140.07,0.05233452]
[1723754174096,2.8547,140.08,140.07,0.05233452]
[1723754174293,6.38865769,140.08,140.07,0.05233452]
[1723754175390,2.8555,140.05,140.01,7.4989]
[1723754175790,2.8555,140.05,139.99,26.4586]
[1723754175791,27.51395769,140.08,139.99,29.3151]
[1723754176093,2.8557,140.04,139.99,32.7186]
[1723754176689,0.05208965,140.03,140.0,0.05249147]
[1723754177089,0.05208965,140.03,140.0,2.90879147]
[1723754177793,2.90788965,140.03,140.0,0.05249147]
[1723754178094,0.05208965,140.03,140.0,0.05249147]
[1723754178494,2.856,140.02,140.0,0.05249147]
[1723754179196,2.8562,140.01,140.0,0.05249147]
[1723754179603,2.857,139.97,139.91,30.24]
[1723754179896,3.64043314,139.99,139.91,7.5575]
[1723754180096,23.98,139.98,139.88,23.98]
[1723754180302,33.77154503,139.98,139.88,23.98]
[1723754180596,27.51154503,139.98,139.88,23.98]
[1723754180795,27.51154503,139.98,139.9,2.8583]
[1723754180996,0.05047403,139.95,139.92,0.05208954]
[1723754181594,2.8577,139.94,139.92,0.05208954]
[1723754182795,2.8578,139.93,139.92,0.05208954]
[1723754183298,0.05047403,139.95,139.53,66.13985708]
[1723754183299,7.6058,139.94,139.84,30.02]
[1723754183604,7.6058,139.94,139.81,30.02]
[1723754183605,30.02,139.92,139.81,30.02]
[1723754184098,2.8589,139.88,139.84,2.8595]
[1723754184602,2.90580036,139.88,139.85,0.05203893]
[1723754186003,2.859,139.87,139.85,0.05203893]
[1723754187298,2.8592,139.86,139.85,0.05203893]
[1723754188104,2.8591,139.87,139.85,0.05203893]
[1723754188407,0.04690036,139.88,139.85,0.05203893]
[1723754188796,2.90590036,139.88,139.85,0.05203893]
[1723754189001,0.04690036,139.88,139.85,0.05203893]
[1723754190099,2.90580036,139.88,139.85,0.05203893]
[1723754190300,0.04690036,139.88,139.85,0.05203893]
[1723754190907,0.04690036,139.88,139.85,2.91133893]
[1723754191814,2.90580036,139.88,139.85,2.91133893]
[1723754192507,2.90580036,139.88,139.85,0.05203893]
[1723754193702,2.8592,139.86,139.85,0.05203893]
[1723754193897,0.04690036,139.88,139.85,0.05203893]
[1723754194706,2.8592,139.86,139.85,0.05203893]
[1723754195111,2.8591,139.87,139.85,0.05203893]
[1723754195322,0.04690036,139.88,139.85,0.05203893]
[1723754196319,2.8592,139.86,139.85,0.05203893]
[1723754197707,2.859,139.87,139.85,0.05203893]
[1723754197910,0.04690036,139.88,139.85,0.05203893]
[1723754199112,2.90570036,139.88,139.85,0.05203893]
[1723754199612,0.04690036,139.88,139.85,0.05203893]
[1723754200515,2.859,139.87,139.85,0.05203893]
[1723754201210,2.8592,139.86,139.85,0.05203893]
[1723754205317,2.859,139.87,139.85,0.05203893]
[1723754205515,0.04690036,139.88,139.85,0.05203893]
[1723754206027,2.8591,139.87,139.85,0.05203893]
[1723754206421,0.04690036,139.88,139.85,0.05203893]
[1723754206422,2.90580036,139.88,139.85,0.05203893]
[1723754206625,0.04690036,139.88,139.85,24.06203893]
[1723754206929,6.24,139.95,139.87,24.01]
[1723754206930,24.01,139.95,139.87,24.01]
[1723754207116,24.01,139.91,139.85,6.29203893]
[1723754207427,27.59062016,139.91,139.84,6.24]
[1723754207726,2.8585,139.9,139.85,2.8593]
[1723754208223,0.05359887,139.89,139.86,0.05096007]
[1723754208520,30.01,139.94,139.85,1.225]
[1723754208730,2.90667937,139.89,139.86,0.04593519]
[1723754209122,2.8587,139.89,139.85,10.3243]
[1723754209322,2.90563415,139.89,139.86,0.05068239]
[1723754209526,2.90563415,139.89,139.86,2.90988239]
[1723754209724,0.04693415,139.89,139.86,2.90988239]
[1723754210326,0.04693415,139.89,139.86,0.05068239]
[1723754210827,0.04693415,139.89,139.86,2.90978239]
[1723754211229,0.04693415,139.89,139.87,2.859]
[1723754211530,0.04693415,139.89,139.86,0.05068239]
[1723754212331,2.90573415,139.89,139.86,2.90978239]
[1723754212923,0.04693415,139.89,139.86,0.05068239]
[1723754213119,6.19150609,139.97,139.87,30.01]
[1723754213526,2.8575,139.95,139.91,2.858]
[1723754213724,259.01,140.0,139.9,33.51455986]
[1723754213927,259.01,140.0,139.9,33.65141207]
[1723754214123,2.857,139.97,139.93,2.8577]
[1723754214434,0.0497128,139.96,139.94,0.04545357]
[1723754214925,0.0497128,139.96,139.94,2.90295357]
[1723754215327,0.0497128,139.96,139.95,2.8574]
[1723754221327,0.0497128,139.96,139.95,9.0774]
[1723754222240,0.0497128,139.96,139.95,6.22]
[1723754222836,0.0497128,139.96,139.95,9.0774]
[1723754223031,0.0497128,139.96,139.95,6.22]
[1723754223436,0.0497128,139.96,139.95,9.0774]
[1723754224933,2.4929,140.04,139.98,2.8566]
[1723754224934,2.8561,140.02,139.98,2.8566]
[1723754225140,1.323,140.05,139.96,30.01]
[1723754225343,1.323,140.05,139.95,6.22]
[1723754225636,2.8562,140.02,139.98,2.8567]
[1723754225843,31.333,140.05,139.95,6.22]
[1723754226239,0.04717446,140.01,139.99,0.04568407]
[1723754227042,0.04717446,140.01,140.0,2.8564]
[1723754227442,0.04717446,140.01,139.99,0.04568407]
[1723754227643,0.04717446,140.01,139.99,2.90218407]
[1723754228035,0.04717446,140.01,139.99,0.04568407]
[1723754229740,0.04717446,140.01,140.0,9.0564]
[1723754229940,28.8258426,140.09,140.0,30.18]
[1723754230246,2.8551,140.07,140.03,2.8556]
[1723754231351,2.8551,140.07,140.04,0.05120534]
[1723754231648,2.8551,140.07,140.04,2.90680534]
[1723754232442,2.8553,140.06,140.04,0.05120534]
[1723754232643,23.98,140.07,140.04,0.05120534]
[1723754233053,2.8553,140.06,140.04,0.05120534]
[1723754234762,2.8551,140.07,140.04,0.05120534]
[1723754235162,23.98,140.09,140.04,0.05120534]
[1723754235659,2.8551,140.07,140.04,0.05120534]
[1723754236163,2.8551,140.07,140.04,2.90670534]
[1723754236463,2.8548,140.08,140.04,0.05120534]
[1723754236665,1.2441,140.1,140.04,0.05120534]
[1723754236866,3.61762199,140.12,140.04,0.05120534]
[1723754237163,26.4786,140.13,140.06,2.855]
[1723754237371,30.03304923,140.13,140.06,2.855]
[1723754237662,2.4986,140.13,140.08,0.04835074]
[1723754237865,50.86997097,140.18,140.08,24.02835074]
[1723754238164,74.84997097,140.18,140.08,23.98]
[1723754238368,74.84997097,140.18,140.12,0.05106241]
[1723754239455,27.7725,140.2,140.12,0.05106241]
[1723754239667,23.98,140.18,140.12,0.05106241]
[1723754240258,2.8535,140.15,140.12,0.05106241]
[1723754241665,2.8537,140.13,140.12,0.05106241]
[1723754241872,29.99,140.16,140.12,0.05106241]
[1723754242270,2.8535,140.15,140.12,0.05106241]
[1723754242772,29.99,140.18,140.12,0.05106241]
[1723754242977,2.8536,140.14,140.12,0.05106241]
[1723754243170,3.55715912,140.16,140.12,0.05106241]
[1723754243371,2.8535,140.14,140.12,0.05106241]
[1723754244076,2.8534,140.15,140.12,0.05106241]
[1723754244464,29.99,140.18,140.12,0.05106241]
[1723754244670,3.7925,140.2,140.12,0.05106241]
[1723754244671,2.853,140.17,140.12,0.05106241]
[1723754244974,2.853,140.17,140.13,2.8537]
[1723754245775,2.8531,140.16,140.12,2.90496241]
[1723754246078,29.99,140.18,140.12,0.05106241]
[1723754247269,2.8536,140.14,140.12,0.05106241]
[1723754247871,33.57702033,140.16,140.12,0.05106241]
[1723754248078,29.99,140.16,140.12,0.05106241]
[1723754248471,2.8537,140.13,140.12,0.05106241]
[1723754249270,32.5836,140.14,140.05,6.18]
[1723754249476,33.8572,140.14,140.05,6.18]
[1723754249680,29.99,140.12,140.05,6.18]
[1723754249972,3.8672,140.14,140.0,7.4614]
[1723754249973,29.99,140.1,140.0,7.4614]
[1723754250178,29.99,140.1,140.02,2.856]
[1723754250369,2.8551,140.07,140.0,7.4614]
[1723754250573,0.04977885,140.06,140.04,0.05089313]
[1723754251878,2.90497885,140.06,140.04,0.05089313]
[1723754252770,0.04977885,140.06,140.04,0.05089313]
[1723754253775,0.04977885,140.06,140.04,2.90639313]
[1723754254275,0.04977885,140.06,140.05,2.8554]
[1723754254481,0.04977885,140.06,140.04,0.05089313]
[1723754254980,0.04977885,140.06,140.04,2.90639313]
[1723754255585,2.90497885,140.06,140.04,0.05089313]
[1723754255776,0.04977885,140.06,140.04,0.05089313]
[1723754256881,2.90507885,140.06,140.04,0.05089313]
[1723754257770,2.8554,140.05,140.04,0.05089313]
[1723754260169,2.90497885,140.06,140.04,0.05089313]
[1723754261276,0.04977885,140.06,140.04,0.05089313]
[1723754261981,0.04977885,140.06,140.04,2.90639313]
[1723754263273,0.04977885,140.06,140.05,2.8554]
[1723754268674,2.8538,140.13,140.1,2.8542]
[1723754268875,3.8548,140.18,140.08,23.97]
[1723754269080,27.8248,140.18,140.1,6.18]
[1723754269276,2.8541,140.12,140.1,6.18]
[1723754269783,2.8538,140.13,140.1,6.18]
[1723754270089,2.8538,140.13,140.1,6.22820651]
[1723754270886,2.8538,140.13,140.1,9.08250651]
[1723754271790,2.8538,140.13,140.1,6.22820651]
[1723754272282,27.52822399,140.16,140.1,6.22820651]
[1723754272486,3.8548,140.18,140.1,0.04820651]
[1723754272681,23.97,140.16,140.1,0.04820651]
[1723754272884,2.854,140.12,140.1,0.04820651]
[1723754275090,2.8538,140.13,140.1,0.04820651]
[1723754275890,2.8535,140.14,140.1,2.90250651]
[1723754276788,2.8538,140.13,140.1,0.04820651]
[1723754277793,2.8538,140.13,140.1,2.90250651]
[1723754278486,2.8538,140.13,140.1,0.04820651]
[1723754280981,2.8539,140.12,140.1,0.04820651]
[1723754282790,2.8538,140.13,140.1,0.04820651]
[1723754283791,2.8539,140.12,140.1,0.04820651]
[1723754288189,2.8539,140.13,140.1,0.04820651]
[1723754288392,27.8248,140.18,140.1,0.04820651]
[1723754288588,27.8248,140.18,140.1,24.01820651]
[1723754288787,2.8535,140.15,140.11,2.854]
[1723754289189,2.8535,140.14,140.12,0.05009214]
[1723754290394,2.8534,140.15,140.12,0.05009214]
[1723754291195,27.8248,140.18,140.12,0.05009214]
[1723754291391,23.97,140.16,140.12,0.05009214]
[1723754291596,3.53947452,140.15,140.12,0.05009214]
[1723754292295,2.8537,140.13,140.12,0.05009214]
[1723754301092,2.8535,140.14,140.12,0.05009214]
[1723754301894,2.8535,140.15,140.12,0.05009214]
[1723754302196,9.59,140.15,140.12,0.05009214]
[1723754302402,2.8537,140.13,140.12,0.05009214]
[1723754305296,2.8536,140.14,140.12,0.05009214]
[1723754305499,13.4448,140.18,140.12,0.05009214]
[1723754306000,2.8533,140.16,140.12,0.05009214]
[1723754306604,2.8533,140.16,140.12,2.90399214]
[1723754306797,2.8533,140.15,140.12,2.90399214]
[1723754306995,2.8533,140.15,140.12,0.05009214]
[1723754307191,9.59,140.17,140.12,0.05009214]
[1723754307599,2.8536,140.14,140.12,0.05009214]
[1723754309802,2.8534,140.15,140.12,0.05009214]
[1723754310003,9.59,140.17,140.12,0.05009214]
[1723754310308,13.4448,140.18,140.12,0.05009214]
[1723754310804,2.8533,140.15,140.12,0.05009214]
[1723754314711,2.8535,140.14,140.12,0.05009214]
[1723754318601,2.8534,140.15,140.12,0.05009214]
[1723754320399,13.4448,140.18,140.13,2.8536]
[1723754320400,3.8548,140.18,140.13,2.8536]
[1723754320605,3.8548,140.18,140.12,9.64009214]
[1723754321806,2.8532,140.16,140.12,12.49399214]
[1723754323610,9.59,140.2,140.14,9.59]
[1723754324210,9.59,140.2,140.16,0.04879203]
[1723754324705,2.853,140.17,140.16,0.04879203]
[1723754325315,2.8541,140.11,140.08,2.5528]
[1723754325504,9.59,140.12,140.06,9.59]
[1723754325701,9.59,140.12,140.06,15.71]
[1723754326013,2.8545,140.1,140.06,15.71]
[1723754326603,0.05420867,140.09,140.07,0.04761768]
[1723754327806,0.05420867,140.09,140.08,9.59]
[1723754328515,0.05420867,140.09,140.08,12.4447]
[1723754335812,0.05420867,140.09,140.08,18.5647]
[1723754340108,27.61997652,140.22,140.08,15.71]
[1723754340326,9.59,140.2,140.14,9.59]
[1723754340713,2.8532,140.16,140.14,9.59]
[1723754341219,2.8532,140.16,140.14,9.64087288]
[1723754342418,9.59,140.19,140.14,0.05087288]
[1723754342623,9.59,140.19,140.14,9.64087288]
[1723754342921,2.853,140.17,140.14,9.64087288]
[1723754344114,9.59,140.19,140.14,0.05087288]
[1723754344314,9.59,140.17,140.14,0.05087288]
[1723754344519,9.59,140.16,140.09,6.1]
[1723754344821,9.59,140.14,140.09,6.1]
[1723754345423,2.8541,140.12,140.09,6.1]
[1723754345626,2.8541,140.12,140.1,0.04987564]
[1723754346327,0.04977343,140.13,140.1,0.04987564]
[1723754346524,9.59,140.12,140.1,0.04987564]
[1723754347324,9.59,140.07,139.99,9.59]
[1723754347524,9.59,140.06,139.99,9.59]
[1723754347723,2.8554,140.05,140.02,9.59]
[1723754348216,2.8556,140.04,140.02,9.59]
[1723754348421,2.8556,140.04,140.02,0.05085272]
[1723754349430,2.90631006,140.05,140.02,0.05085272]
[1723754351928,0.05091006,140.05,140.02,24.03085272]
[1723754352529,0.05091006,140.05,140.04,23.98]
[1723754353817,0.05091006,140.05,140.03,2.8556]
[1723754354731,2.90631006,140.05,140.02,6.15085272]
[1723754354926,0.05091006,140.05,140.02,6.15085272]
[1723754355233,2.90641006,140.05,140.02,6.15085272]
[1723754355930,0.05091006,140.05,140.02,6.15085272]
[1723754356435,0.05091006,140.05,140.02,9.00675272]
[1723754356630,2.90641006,140.05,140.02,9.00675272]
[1723754357233,0.05091006,140.05,140.03,2.8557]
[1723754357431,0.05091006,140.05,140.04,23.98]
[1723754357936,0.05091006,140.05,140.04,26.8356]
[1723754359631,0.05091006,140.05,140.04,2.8556]
[1723754360833,0.05091006,140.05,140.02,30.13085272]
[1723754361534,0.05091006,140.05,140.03,2.8556]
[1723754362637,2.90641006,140.05,140.02,30.13085272]
[1723754362937,0.05091006,140.05,140.02,6.15085272]
[1723754363133,2.90631006,140.05,140.02,9.00675272]
[1723754364135,1.0,140.11,140.04,23.98]
[1723754364336,1.2496,140.12,140.06,23.98]
[1723754364536,1.3151,140.17,140.1,23.98]
[1723754364735,1.3151,140.17,140.1,27.46256171]
[1723754365136,1.3151,140.17,140.1,23.98]
[1723754365332,0.04666431,140.15,140.12,0.04972763]
[1723754365633,2.90016431,140.15,140.12,0.04972763]
[1723754368641,2.8536,140.14,140.12,0.04972763]
[1723754369841,2.8537,140.13,140.12,0.04972763]
[1723754370244,2.8536,140.14,140.12,0.04972763]
[1723754370940,0.04666431,140.15,140.12,0.04972763]
[1723754370941,2.8537,140.13,140.12,0.04972763]
[1723754379649,9.63666431,140.15,140.12,0.04972763]
[1723754379945,2.8536,140.14,140.12,0.04972763]
[1723754380144,0.04666431,140.15,140.12,0.04972763]
[1723754380347,2.8537,140.14,140.12,0.04972763]
[1723754381236,2.8537,140.13,140.12,0.04972763]
[1723754381746,2.8537,140.14,140.12,0.04972763]
[1723754382445,0.04666431,140.15,140.12,9.63972763]
[1723754383535,2.8535,140.14,140.12,0.04972763]
[1723754384350,0.04666431,140.15,140.12,0.04972763]
[1723754385441,2.90016431,140.15,140.12,0.04972763]
[1723754385836,0.04666431,140.15,140.12,0.04972763]
[1723754386043,2.90006431,140.15,140.12,0.04972763]
[1723754386243,0.04666431,140.15,140.12,0.04972763]
[1723754386445,2.8535,140.14,140.12,0.04972763]
[1723754386644,0.04666431,140.15,140.12,0.04972763]